[Event "December 12 Early 2023"]
[Site "https://www.chess.com"]
[Date "2023.12.12"]
[Round "1"]
[White "Zeneli, Klendi"]
[Black "Antunez Soler, Luis"]
[Result "0-1"]
[Board "154"]
[TimeControl "180+1"]
[WhiteFideId "4706609"]
[BlackFideId "3513335"]
[WhiteElo "2335"]
[BlackElo "2625"]
[WhiteTeam "ALB"]
[BlackTeam "CUB"]
[WhiteClock "0:01:13"]
[BlackClock "0:02:33"]

1. e4 {[%clk 0:03:00]}  e6 {[%clk 0:02:59]} 2. d4 {[%clk 0:03:00]}  d5 {[%clk 0:02:59]} 3. Nc3 {[%clk 0:03:00]}  Nf6 {[%clk 0:02:59]} 4. e5 {[%clk 0:03:00]}  Nfd7 {[%clk 0:02:59]} 5. f4 {[%clk 0:03:01]}  c5 {[%clk 0:03:00]} 6. Nf3 {[%clk 0:03:02]}  Nc6 {[%clk 0:03:01]} 7. Be3 {[%clk 0:03:02]}  a6 {[%clk 0:03:02]} 8. a3 {[%clk 0:03:02]}  b5 {[%clk 0:03:02]} 9. Qd2 {[%clk 0:03:01]}  Qa5 {[%clk 0:03:01]} 10. dxc5 {[%clk 0:03:00]}  Bxc5 {[%clk 0:03:01]} 11. Bxc5 {[%clk 0:02:48]}  Nxc5 {[%clk 0:03:02]} 12. Be2 {[%clk 0:02:40]}  b4 {[%clk 0:03:00]} 13. Na2 {[%clk 0:02:22]}  Ne4 {[%clk 0:02:53]} 14. axb4 {[%clk 0:01:45]}  Qb6 {[%clk 0:02:54]} 15. Qd3 {[%clk 0:01:34]}  Qf2+ {[%clk 0:02:52]} 16. Kd1 {[%clk 0:01:34]}  Qxg2 {[%clk 0:02:52]} 17. Rg1 {[%clk 0:01:34]}  Qxg1+ {[%clk 0:02:46]} 18. Nxg1 {[%clk 0:01:30]}  Nf2+ {[%clk 0:02:46]} 19. Kd2 {[%clk 0:01:31]}  Nxd3 {[%clk 0:02:47]} 20. Bxd3 {[%clk 0:01:32]}  Rb8 {[%clk 0:02:44]} 21. c3 {[%clk 0:01:31]}  a5 {[%clk 0:02:35]} 22. b5 {[%clk 0:01:26]}  Na7 {[%clk 0:02:35]} 23. Nc1 {[%clk 0:01:24]}  Nxb5 {[%clk 0:02:34]} 24. Rxa5 {[%clk 0:01:25]}  Nc7 {[%clk 0:02:34]} 25. Nf3 {[%clk 0:01:13]}  Rxb2+ {[%clk 0:02:33]} 0-1

[Event "December 12 Early 2023"]
[Site "https://www.chess.com"]
[Date "2023.12.12"]
[Round "1"]
[White "Skliarov, Viktor"]
[Black "De Arruda, Leandro Formes"]
[Result "1-0"]
[Board "155"]
[TimeControl "180+1"]
[WhiteFideId "14106736"]
[BlackFideId "22722009"]
[WhiteElo "2624"]
[BlackElo "2331"]
[WhiteTeam "UKR"]
[BlackTeam "BRA"]
[WhiteClock "0:02:21"]
[BlackClock "0:02:37"]

1. e4 {[%clk 0:02:59]}  e6 {[%clk 0:02:59]} 2. d4 {[%clk 0:02:56]}  d5 {[%clk 0:03:00]} 3. e5 {[%clk 0:02:52]}  c5 {[%clk 0:03:00]} 4. c3 {[%clk 0:02:52]}  Nc6 {[%clk 0:03:00]} 5. Nf3 {[%clk 0:02:53]}  Qb6 {[%clk 0:03:01]} 6. a3 {[%clk 0:02:53]}  a5 {[%clk 0:03:00]} 7. Bd3 {[%clk 0:02:53]}  Bd7 {[%clk 0:03:01]} 8. Bc2 {[%clk 0:02:52]}  cxd4 {[%clk 0:03:00]} 9. cxd4 {[%clk 0:02:52]}  Nge7 {[%clk 0:03:00]} 10. Nc3 {[%clk 0:02:53]}  Nf5 {[%clk 0:03:00]} 11. Bxf5 {[%clk 0:02:49]}  exf5 {[%clk 0:03:01]} 12. Nxd5 {[%clk 0:02:49]}  Qd8 {[%clk 0:02:55]} 13. Nc3 {[%clk 0:02:45]}  Qc7 {[%clk 0:02:45]} 14. O-O {[%clk 0:02:26]}  g6 {[%clk 0:02:43]} 15. d5 {[%clk 0:02:23]}  Nxe5 {[%clk 0:02:38]} 16. Nxe5 {[%clk 0:02:22]}  Qxe5 {[%clk 0:02:37]} 17. Re1 {[%clk 0:02:21]} 1-0

[Event "December 12 Early 2023"]
[Site "https://www.chess.com"]
[Date "2023.12.12"]
[Round "1"]
[White "Chlpik, Martin"]
[Black "Ingebretsen, Jens E"]
[Result "1/2-1/2"]
[Board "158"]
[TimeControl "180+1"]
[WhiteFideId "14923351"]
[BlackFideId "1522965"]
[WhiteElo "2327"]
[BlackElo "2617"]
[WhiteTeam "SVK"]
[BlackTeam "NOR"]
[WhiteClock "0:00:06"]
[BlackClock "0:00:08"]

1. d4 {[%clk 0:03:00]}  d5 {[%clk 0:02:59]} 2. c4 {[%clk 0:03:00]}  e6 {[%clk 0:02:59]} 3. Nc3 {[%clk 0:03:01]}  Nf6 {[%clk 0:03:00]} 4. cxd5 {[%clk 0:02:59]}  Nxd5 {[%clk 0:03:01]} 5. Nf3 {[%clk 0:02:58]}  c5 {[%clk 0:03:01]} 6. e4 {[%clk 0:02:58]}  Nxc3 {[%clk 0:03:01]} 7. bxc3 {[%clk 0:02:59]}  cxd4 {[%clk 0:03:02]} 8. cxd4 {[%clk 0:02:59]}  Bb4+ {[%clk 0:03:02]} 9. Bd2 {[%clk 0:02:59]}  Bxd2+ {[%clk 0:03:03]} 10. Qxd2 {[%clk 0:02:59]}  O-O {[%clk 0:03:04]} 11. Bd3 {[%clk 0:02:58]}  Nc6 {[%clk 0:03:05]} 12. e5 {[%clk 0:02:40]}  g6 {[%clk 0:02:51]} 13. Qc3 {[%clk 0:02:12]}  Qa5 {[%clk 0:02:48]} 14. Qxa5 {[%clk 0:02:12]}  Nxa5 {[%clk 0:02:49]} 15. h4 {[%clk 0:02:11]}  b6 {[%clk 0:02:48]} 16. Be4 {[%clk 0:02:11]}  Bb7 {[%clk 0:02:47]} 17. Bxb7 {[%clk 0:02:10]}  Nxb7 {[%clk 0:02:48]} 18. h5 {[%clk 0:02:10]}  Rac8 {[%clk 0:02:41]} 19. hxg6 {[%clk 0:02:08]}  hxg6 {[%clk 0:02:38]} 20. Ng5 {[%clk 0:02:08]}  Kg7 {[%clk 0:02:38]} 21. Ne4 {[%clk 0:02:06]}  Rh8 {[%clk 0:02:37]} 22. Kd2 {[%clk 0:02:06]}  Na5 {[%clk 0:02:33]} 23. Kd3 {[%clk 0:02:03]}  Nc4 {[%clk 0:02:02]} 24. Rxh8 {[%clk 0:01:49]}  Nb2+ {[%clk 0:02:01]} 25. Kd2 {[%clk 0:01:48]}  Nc4+ {[%clk 0:01:43]} 26. Kd3 {[%clk 0:01:36]}  Nb2+ {[%clk 0:01:40]} 27. Kd2 {[%clk 0:01:33]}  Kxh8 {[%clk 0:01:25]} 28. Rh1+ {[%clk 0:01:14]}  Kg7 {[%clk 0:01:26]} 29. Nf6 {[%clk 0:01:03]}  Nc4+ {[%clk 0:01:19]} 30. Kd3 {[%clk 0:01:02]}  Nb2+ {[%clk 0:01:19]} 31. Kd2 {[%clk 0:01:02]}  g5 {[%clk 0:01:11]} 32. Ne4 {[%clk 0:00:42]}  Kg6 {[%clk 0:01:09]} 33. g4 {[%clk 0:00:41]}  Nc4+ {[%clk 0:01:08]} 34. Kd3 {[%clk 0:00:39]}  Nb2+ {[%clk 0:01:08]} 35. Kd2 {[%clk 0:00:39]}  Rc4 {[%clk 0:01:02]} 36. Ke3 {[%clk 0:00:34]}  Ra4 {[%clk 0:00:40]} 37. Rh5 {[%clk 0:00:33]}  Ra3+ {[%clk 0:00:37]} 38. Ke2 {[%clk 0:00:33]}  Rxa2 {[%clk 0:00:34]} 39. Rxg5+ {[%clk 0:00:32]}  Kh6 {[%clk 0:00:35]} 40. Rh5+ {[%clk 0:00:31]}  Kg7 {[%clk 0:00:35]} 41. Kf3 {[%clk 0:00:27]}  Nc4 {[%clk 0:00:32]} 42. Nf6 {[%clk 0:00:19]}  Ra3+ {[%clk 0:00:19]} 43. Kf4 {[%clk 0:00:18]}  Nd2 {[%clk 0:00:05]} 44. Rg5+ {[%clk 0:00:18]}  Kh6 {[%clk 0:00:05]} 45. Ng8+ {[%clk 0:00:10]}  Kh7 {[%clk 0:00:06]} 46. Nf6+ {[%clk 0:00:10]}  Kh6 {[%clk 0:00:06]} 47. Ng8+ {[%clk 0:00:06]}  Kh7 {[%clk 0:00:07]} 48. Nf6+ {[%clk 0:00:06]}  Kh6 {[%clk 0:00:08]} 1/2-1/2

[Event "December 12 Early 2023"]
[Site "https://www.chess.com"]
[Date "2023.12.12"]
[Round "1"]
[White "Eggleston, Thomas A"]
[Black "Borgaonkar Akshay"]
[Result "0-1"]
[Board "160"]
[TimeControl "180+1"]
[WhiteFideId "412139"]
[BlackFideId "25639110"]
[WhiteElo "2322"]
[BlackElo "2616"]
[WhiteTeam "ENG"]
[BlackTeam "IND"]
[WhiteClock "0:00:00"]
[BlackClock "0:00:10"]

1. e4 {[%clk 0:03:00]}  e6 {[%clk 0:02:56]} 2. d4 {[%clk 0:02:58]}  d5 {[%clk 0:02:56]} 3. exd5 {[%clk 0:02:55]}  exd5 {[%clk 0:02:56]} 4. Nf3 {[%clk 0:02:55]}  Nf6 {[%clk 0:02:55]} 5. Bd3 {[%clk 0:02:55]}  Bd6 {[%clk 0:02:55]} 6. Qe2+ {[%clk 0:02:55]}  Qe7 {[%clk 0:02:54]} 7. Ne5 {[%clk 0:02:48]}  Nbd7 {[%clk 0:02:51]} 8. f4 {[%clk 0:02:47]}  c5 {[%clk 0:02:40]} 9. c3 {[%clk 0:02:46]}  O-O {[%clk 0:02:31]} 10. O-O {[%clk 0:02:46]}  b6 {[%clk 0:02:26]} 11. Nd2 {[%clk 0:02:43]}  Bb7 {[%clk 0:02:26]} 12. g4 {[%clk 0:02:17]}  cxd4 {[%clk 0:02:12]} 13. cxd4 {[%clk 0:02:16]}  Rac8 {[%clk 0:01:32]} 14. g5 {[%clk 0:02:15]}  Ne4 {[%clk 0:01:02]} 15. Nxe4 {[%clk 0:02:11]}  dxe4 {[%clk 0:01:01]} 16. Bxe4 {[%clk 0:02:11]}  Bxe4 {[%clk 0:00:56]} 17. Qxe4 {[%clk 0:02:11]}  f6 {[%clk 0:00:51]} 18. Qd5+ {[%clk 0:02:07]}  Kh8 {[%clk 0:00:51]} 19. Nc6 {[%clk 0:01:35]}  Qe2 {[%clk 0:00:22]} 20. Qxd6 {[%clk 0:01:18]}  Qg4+ {[%clk 0:00:14]} 21. Kh1 {[%clk 0:01:06]}  Rfe8 {[%clk 0:00:14]} 22. Qd5 {[%clk 0:00:16]}  Re2 {[%clk 0:00:14]} 23. Nxa7 {[%clk 0:00:00]}  Qh3 {[%clk 0:00:10]} 0-1

[Event "December 12 Early 2023"]
[Site "https://www.chess.com"]
[Date "2023.12.12"]
[Round "1"]
[White "Sarkar, Justin"]
[Black "Janaszak, Dawid"]
[Result "0-1"]
[Board "162"]
[TimeControl "180+1"]
[WhiteFideId "2010011"]
[BlackFideId "1119206"]
[WhiteElo "2318"]
[BlackElo "2613"]
[WhiteTeam "USA"]
[BlackTeam "POL"]
[WhiteClock "0:00:00"]
[BlackClock "0:00:25"]

1. e4 {[%clk 0:02:54]}  c5 {[%clk 0:03:00]} 2. Nf3 {[%clk 0:02:53]}  Nc6 {[%clk 0:03:00]} 3. d4 {[%clk 0:02:51]}  cxd4 {[%clk 0:03:01]} 4. Nxd4 {[%clk 0:02:51]}  e5 {[%clk 0:03:02]} 5. Ne2 {[%clk 0:02:28]}  Nf6 {[%clk 0:03:01]} 6. Nbc3 {[%clk 0:02:26]}  Bc5 {[%clk 0:03:01]} 7. Ng3 {[%clk 0:02:25]}  d6 {[%clk 0:02:55]} 8. Be2 {[%clk 0:02:22]}  h5 {[%clk 0:02:52]} 9. Bg5 {[%clk 0:02:07]}  Qb6 {[%clk 0:02:32]} 10. O-O {[%clk 0:01:59]}  h4 {[%clk 0:02:28]} 11. Nf5 {[%clk 0:01:55]}  Bxf5 {[%clk 0:02:17]} 12. exf5 {[%clk 0:01:54]}  h3 {[%clk 0:02:06]} 13. g3 {[%clk 0:01:43]}  Nd4 {[%clk 0:02:06]} 14. Bxf6 {[%clk 0:01:36]}  gxf6 {[%clk 0:02:06]} 15. Nd5 {[%clk 0:01:34]}  Qc6 {[%clk 0:01:50]} 16. Bf3 {[%clk 0:01:21]}  Kf8 {[%clk 0:01:28]} 17. Be4 {[%clk 0:01:14]}  Rc8 {[%clk 0:01:09]} 18. c3 {[%clk 0:01:11]}  Nb5 {[%clk 0:01:09]} 19. Nxf6 {[%clk 0:01:01]}  d5 {[%clk 0:01:00]} 20. Nxd5 {[%clk 0:01:00]}  Nd6 {[%clk 0:00:59]} 21. Qf3 {[%clk 0:00:53]}  Qa6 {[%clk 0:00:52]} 22. b4 {[%clk 0:00:45]}  Bb6 {[%clk 0:00:53]} 23. a4 {[%clk 0:00:38]}  Qc4 {[%clk 0:00:51]} 24. Nxb6 {[%clk 0:00:29]}  axb6 {[%clk 0:00:49]} 25. Bd5 {[%clk 0:00:22]}  Qxc3 {[%clk 0:00:42]} 26. Qxc3 {[%clk 0:00:17]}  Rxc3 {[%clk 0:00:43]} 27. Rfc1 {[%clk 0:00:16]}  Rd3 {[%clk 0:00:36]} 28. Rd1 {[%clk 0:00:14]}  Rxd1+ {[%clk 0:00:32]} 29. Rxd1 {[%clk 0:00:13]}  Ke7 {[%clk 0:00:32]} 30. Rc1 {[%clk 0:00:10]}  Kd7 {[%clk 0:00:27]} 31. g4 {[%clk 0:00:10]}  Ra8 {[%clk 0:00:23]} 32. Ra1 {[%clk 0:00:07]}  Rc8 {[%clk 0:00:24]} 33. a5 {[%clk 0:00:06]}  bxa5 {[%clk 0:00:25]} 34. bxa5 {[%clk 0:00:06]}  Rc5 {[%clk 0:00:25]} 35. Bf3 {[%clk 0:00:05]}  e4 {[%clk 0:00:26]} 36. Be2 {[%clk 0:00:05]}  Rc2 {[%clk 0:00:26]} 37. Kf1 {[%clk 0:00:04]}  f6 {[%clk 0:00:25]} 38. Rd1 {[%clk 0:00:03]}  Kc7 {[%clk 0:00:25]} 39. Rd5 {[%clk 0:00:02]}  Rc1+ {[%clk 0:00:24]} 40. Bd1 {[%clk 0:00:01]}  Rc3 {[%clk 0:00:24]} 41. Ke2 {[%clk 0:00:01]}  Ra3 {[%clk 0:00:25]} 42. Rc5+ {[%clk 0:00:00]}  Kd8 {[%clk 0:00:25]} 0-1

[Event "December 12 Early 2023"]
[Site "https://www.chess.com"]
[Date "2023.12.12"]
[Round "1"]
[White "Tao, Sihan"]
[Black "Silva, Pedro Gil Ferreira Da"]
[Result "1/2-1/2"]
[Board "163"]
[TimeControl "180+1"]
[WhiteFideId "30982677"]
[BlackFideId "1946102"]
[WhiteElo "2610"]
[BlackElo "2317"]
[WhiteTeam "USA"]
[BlackTeam "POR"]
[WhiteClock "0:00:31"]
[BlackClock "0:01:04"]

1. e4 {[%clk 0:03:00]}  c6 {[%clk 0:02:58]} 2. d4 {[%clk 0:02:58]}  d5 {[%clk 0:02:58]} 3. Nd2 {[%clk 0:02:58]}  dxe4 {[%clk 0:02:59]} 4. Nxe4 {[%clk 0:02:59]}  Nd7 {[%clk 0:02:59]} 5. Bd3 {[%clk 0:02:55]}  Ngf6 {[%clk 0:02:59]} 6. Nf3 {[%clk 0:02:55]}  Nxe4 {[%clk 0:02:51]} 7. Bxe4 {[%clk 0:02:56]}  Nf6 {[%clk 0:02:51]} 8. Bd3 {[%clk 0:02:56]}  Bg4 {[%clk 0:02:44]} 9. c3 {[%clk 0:02:56]}  e6 {[%clk 0:02:41]} 10. h3 {[%clk 0:02:54]}  Bh5 {[%clk 0:02:38]} 11. O-O {[%clk 0:02:49]}  Bd6 {[%clk 0:02:36]} 12. Re1 {[%clk 0:02:46]}  O-O {[%clk 0:02:33]} 13. Be2 {[%clk 0:02:28]}  Qc7 {[%clk 0:02:32]} 14. Ne5 {[%clk 0:02:26]}  Bxe2 {[%clk 0:02:30]} 15. Qxe2 {[%clk 0:02:26]}  Nd7 {[%clk 0:02:31]} 16. Nxd7 {[%clk 0:02:25]}  Qxd7 {[%clk 0:02:30]} 17. Be3 {[%clk 0:02:20]}  Qc7 {[%clk 0:02:27]} 18. Rad1 {[%clk 0:02:19]}  h6 {[%clk 0:02:12]} 19. Qg4 {[%clk 0:02:01]}  Kh8 {[%clk 0:02:11]} 20. b3 {[%clk 0:01:50]}  Rad8 {[%clk 0:02:09]} 21. c4 {[%clk 0:01:49]}  c5 {[%clk 0:02:03]} 22. d5 {[%clk 0:01:46]}  exd5 {[%clk 0:01:59]} 23. Rxd5 {[%clk 0:01:47]}  Bh2+ {[%clk 0:01:59]} 24. Kh1 {[%clk 0:01:47]}  Rxd5 {[%clk 0:01:59]} 25. cxd5 {[%clk 0:01:47]}  Bd6 {[%clk 0:01:59]} 26. Rd1 {[%clk 0:01:34]}  Re8 {[%clk 0:01:58]} 27. Qa4 {[%clk 0:01:33]}  Qe7 {[%clk 0:01:49]} 28. Qxa7 {[%clk 0:01:26]}  Qe5 {[%clk 0:01:47]} 29. g3 {[%clk 0:01:01]}  Qe4+ {[%clk 0:01:42]} 30. Kh2 {[%clk 0:01:01]}  Qf3 {[%clk 0:01:35]} 31. Rg1 {[%clk 0:01:01]}  Rxe3 {[%clk 0:01:19]} 32. fxe3 {[%clk 0:01:01]}  Qf2+ {[%clk 0:01:18]} 33. Kh1 {[%clk 0:01:02]}  Qf3+ {[%clk 0:01:12]} 34. Kh2 {[%clk 0:00:48]}  Qf2+ {[%clk 0:01:11]} 35. Kh1 {[%clk 0:00:48]}  Bxg3 {[%clk 0:01:06]} 36. Rxg3 {[%clk 0:00:39]}  Qxg3 {[%clk 0:01:05]} 37. Qxb7 {[%clk 0:00:39]}  Qxh3+ {[%clk 0:01:04]} 38. Kg1 {[%clk 0:00:39]}  Qxe3+ {[%clk 0:01:05]} 39. Kg2 {[%clk 0:00:39]}  Qd2+ {[%clk 0:01:03]} 40. Kf3 {[%clk 0:00:38]}  Qd3+ {[%clk 0:01:03]} 41. Kf4 {[%clk 0:00:33]}  Qd4+ {[%clk 0:01:03]} 42. Kf3 {[%clk 0:00:31]}  Qd3+ {[%clk 0:01:03]} 43. Kf4 {[%clk 0:00:31]}  Qd4+ {[%clk 0:01:04]} 44. Kf3 {[%clk 0:00:31]}  Qd3+ {[%clk 0:01:04]} 1/2-1/2

[Event "December 12 Early 2023"]
[Site "https://www.chess.com"]
[Date "2023.12.12"]
[Round "1"]
[White "Lamaze, Simon"]
[Black "Silvestre, Christian"]
[Result "1-0"]
[Board "165"]
[TimeControl "180+1"]
[WhiteFideId "36069264"]
[BlackFideId "30956269"]
[WhiteElo "2608"]
[BlackElo "2316"]
[WhiteTeam "FRA"]
[BlackTeam "USA"]
[WhiteClock "0:01:20"]
[BlackClock "0:00:10"]

1. e4 {[%clk 0:02:51]}  c5 {[%clk 0:02:58]} 2. Nf3 {[%clk 0:02:51]}  a6 {[%clk 0:02:58]} 3. d4 {[%clk 0:02:52]}  cxd4 {[%clk 0:02:58]} 4. c3 {[%clk 0:02:53]}  d3 {[%clk 0:02:57]} 5. Bxd3 {[%clk 0:02:53]}  d6 {[%clk 0:02:57]} 6. c4 {[%clk 0:02:53]}  e6 {[%clk 0:02:57]} 7. Nc3 {[%clk 0:02:53]}  Qc7 {[%clk 0:02:56]} 8. O-O {[%clk 0:02:54]}  Nf6 {[%clk 0:02:56]} 9. Bf4 {[%clk 0:02:55]}  Be7 {[%clk 0:02:52]} 10. h3 {[%clk 0:02:55]}  b6 {[%clk 0:02:52]} 11. Qd2 {[%clk 0:02:55]}  Bb7 {[%clk 0:02:52]} 12. Rfd1 {[%clk 0:02:55]}  Nbd7 {[%clk 0:02:51]} 13. Qe2 {[%clk 0:02:49]}  Ne5 {[%clk 0:02:47]} 14. Nxe5 {[%clk 0:02:47]}  dxe5 {[%clk 0:02:48]} 15. Be3 {[%clk 0:02:46]}  Nd7 {[%clk 0:02:26]} 16. f3 {[%clk 0:02:25]}  Bc5 {[%clk 0:02:22]} 17. Rac1 {[%clk 0:02:23]}  O-O {[%clk 0:02:20]} 18. a3 {[%clk 0:02:23]}  Bxe3+ {[%clk 0:02:18]} 19. Qxe3 {[%clk 0:02:23]}  Qc5 {[%clk 0:02:18]} 20. Qxc5 {[%clk 0:02:23]}  Nxc5 {[%clk 0:02:18]} 21. b4 {[%clk 0:02:23]}  Nb3 {[%clk 0:02:16]} 22. Rb1 {[%clk 0:02:22]}  Nd4 {[%clk 0:02:17]} 23. Na4 {[%clk 0:02:21]}  b5 {[%clk 0:02:11]} 24. Nc5 {[%clk 0:02:21]}  Bc6 {[%clk 0:01:54]} 25. Kf2 {[%clk 0:02:20]}  a5 {[%clk 0:01:34]} 26. Ra1 {[%clk 0:02:18]}  axb4 {[%clk 0:01:31]} 27. axb4 {[%clk 0:02:19]}  Rxa1 {[%clk 0:01:30]} 28. Rxa1 {[%clk 0:02:20]}  bxc4 {[%clk 0:01:28]} 29. Bxc4 {[%clk 0:02:20]}  Rb8 {[%clk 0:01:25]} 30. Rb1 {[%clk 0:02:18]}  Bb5 {[%clk 0:01:17]} 31. Bxb5 {[%clk 0:02:17]}  Rxb5 {[%clk 0:01:14]} 32. Nd3 {[%clk 0:02:18]}  g6 {[%clk 0:01:07]} 33. Rc1 {[%clk 0:02:18]}  Rb7 {[%clk 0:00:36]} 34. Rc5 {[%clk 0:02:10]}  f6 {[%clk 0:00:35]} 35. Ke3 {[%clk 0:02:00]}  Kf7 {[%clk 0:00:34]} 36. f4 {[%clk 0:02:00]}  Ke7 {[%clk 0:00:22]} 37. fxe5 {[%clk 0:02:00]}  fxe5 {[%clk 0:00:22]} 38. Nxe5 {[%clk 0:01:50]}  Rxb4 {[%clk 0:00:20]} 39. Rc3 {[%clk 0:01:50]}  Kd6 {[%clk 0:00:19]} 40. Nc4+ {[%clk 0:01:48]}  Kc5 {[%clk 0:00:18]} 41. Nb2+ {[%clk 0:01:40]}  Kd6 {[%clk 0:00:16]} 42. Nd3 {[%clk 0:01:36]}  Ra4 {[%clk 0:00:13]} 43. Nc5 {[%clk 0:01:32]}  Rb4 {[%clk 0:00:12]} 44. Nd3 {[%clk 0:01:29]}  Ra4 {[%clk 0:00:12]} 45. Rc8 {[%clk 0:01:27]}  e5 {[%clk 0:00:11]} 46. Rd8+ {[%clk 0:01:27]}  Ke7 {[%clk 0:00:11]} 47. Rd5 {[%clk 0:01:25]}  Nc6 {[%clk 0:00:10]} 48. Nxe5 {[%clk 0:01:25]}  Nxe5 {[%clk 0:00:10]} 49. Rxe5+ {[%clk 0:01:26]}  Kf6 {[%clk 0:00:10]} 50. Rb5 {[%clk 0:01:26]}  Ra3+ {[%clk 0:00:10]} 51. Kf4 {[%clk 0:01:26]}  Ra2 {[%clk 0:00:10]} 52. Rb6+ {[%clk 0:01:26]}  Kg7 {[%clk 0:00:11]} 53. g3 {[%clk 0:01:27]}  Rf2+ {[%clk 0:00:10]} 54. Kg5 {[%clk 0:01:24]}  Re2 {[%clk 0:00:10]} 55. Rb7+ {[%clk 0:01:24]}  Kg8 {[%clk 0:00:10]} 56. Kf6 {[%clk 0:01:24]}  Rf2+ {[%clk 0:00:10]} 57. Ke6 {[%clk 0:01:25]}  Rf3 {[%clk 0:00:09]} 58. g4 {[%clk 0:01:22]}  Rxh3 {[%clk 0:00:09]} 59. g5 {[%clk 0:01:22]}  Re3 {[%clk 0:00:08]} 60. e5 {[%clk 0:01:22]}  Re1 {[%clk 0:00:07]} 61. Rb5 {[%clk 0:01:21]}  Rg1 {[%clk 0:00:06]} 62. Kf6 {[%clk 0:01:21]}  Rf1+ {[%clk 0:00:05]} 63. Ke7 {[%clk 0:01:20]}  Re1 {[%clk 0:00:06]} 64. e6 {[%clk 0:01:20]}  Kg7 {[%clk 0:00:06]} 65. Rd5 {[%clk 0:01:18]}  h5 {[%clk 0:00:07]} 66. Kd7 {[%clk 0:01:15]}  h4 {[%clk 0:00:07]} 67. e7 {[%clk 0:01:15]}  h3 {[%clk 0:00:07]} 68. e8=Q {[%clk 0:01:16]}  Rxe8 {[%clk 0:00:06]} 69. Kxe8 {[%clk 0:01:17]}  h2 {[%clk 0:00:07]} 70. Rd1 {[%clk 0:01:17]}  h1=Q {[%clk 0:00:08]} 71. Rxh1 {[%clk 0:01:17]}  Kg8 {[%clk 0:00:09]} 72. Ke7 {[%clk 0:01:17]}  Kg7 {[%clk 0:00:09]} 73. Ke6 {[%clk 0:01:18]}  Kg8 {[%clk 0:00:10]} 74. Kf6 {[%clk 0:01:19]}  Kf8 {[%clk 0:00:10]} 75. Rh8# {[%clk 0:01:20]} 1-0

[Event "December 12 Early 2023"]
[Site "https://www.chess.com"]
[Date "2023.12.12"]
[Round "1"]
[White "Storn, Justin"]
[Black "Skatchkov, Valery"]
[Result "0-1"]
[Board "166"]
[TimeControl "180+1"]
[WhiteFideId "30922720"]
[BlackFideId "24195812"]
[WhiteElo "2311"]
[BlackElo "2606"]
[WhiteTeam "USA"]
[BlackTeam "RUS"]
[WhiteClock "0:00:00"]
[BlackClock "0:01:44"]

1. Nf3 {[%clk 0:02:49]}  d5 {[%clk 0:02:59]} 2. g3 {[%clk 0:02:49]}  Nd7 {[%clk 0:02:59]} 3. d4 {[%clk 0:02:48]}  Nb6 {[%clk 0:02:58]} 4. Bg2 {[%clk 0:02:48]}  Nf6 {[%clk 0:02:58]} 5. O-O {[%clk 0:02:48]}  Bf5 {[%clk 0:02:59]} 6. b3 {[%clk 0:02:48]}  e6 {[%clk 0:02:59]} 7. Bb2 {[%clk 0:02:48]}  c6 {[%clk 0:02:59]} 8. Nbd2 {[%clk 0:02:47]}  h6 {[%clk 0:03:00]} 9. Re1 {[%clk 0:02:45]}  a5 {[%clk 0:02:56]} 10. a4 {[%clk 0:02:41]}  Bb4 {[%clk 0:02:56]} 11. c3 {[%clk 0:02:36]}  Bd6 {[%clk 0:02:55]} 12. Ne5 {[%clk 0:02:35]}  O-O {[%clk 0:02:53]} 13. f4 {[%clk 0:02:24]}  c5 {[%clk 0:02:50]} 14. e3 {[%clk 0:01:33]}  Rc8 {[%clk 0:02:45]} 15. g4 {[%clk 0:01:01]}  Bxe5 {[%clk 0:02:34]} 16. gxf5 {[%clk 0:01:00]}  Bb8 {[%clk 0:02:34]} 17. fxe6 {[%clk 0:00:59]}  fxe6 {[%clk 0:02:35]} 18. dxc5 {[%clk 0:00:48]}  Rxc5 {[%clk 0:02:31]} 19. Ba3 {[%clk 0:00:48]}  Rxc3 {[%clk 0:02:32]} 20. Bxf8 {[%clk 0:00:48]}  Qxf8 {[%clk 0:02:33]} 21. Rc1 {[%clk 0:00:33]}  Rxc1 {[%clk 0:02:28]} 22. Qxc1 {[%clk 0:00:34]}  d4 {[%clk 0:02:29]} 23. Nf3 {[%clk 0:00:19]}  dxe3 {[%clk 0:02:26]} 24. Qxe3 {[%clk 0:00:20]}  Qb4 {[%clk 0:02:24]} 25. Qxe6+ {[%clk 0:00:20]}  Kh8 {[%clk 0:02:25]} 26. Ne5 {[%clk 0:00:20]}  Qxe1+ {[%clk 0:02:15]} 27. Bf1 {[%clk 0:00:19]}  Qe3+ {[%clk 0:02:13]} 28. Kg2 {[%clk 0:00:19]}  Bxe5 {[%clk 0:01:59]} 29. fxe5 {[%clk 0:00:15]}  Ne4 {[%clk 0:01:58]} 30. Qf5 {[%clk 0:00:08]}  Qg5+ {[%clk 0:01:50]} 31. Qxg5 {[%clk 0:00:07]}  Nxg5 {[%clk 0:01:51]} 32. h4 {[%clk 0:00:06]}  Ne6 {[%clk 0:01:49]} 33. Kf3 {[%clk 0:00:06]}  Nc5 {[%clk 0:01:49]} 34. Kf4 {[%clk 0:00:04]}  Kg8 {[%clk 0:01:49]} 35. Kf5 {[%clk 0:00:02]}  Kf7 {[%clk 0:01:49]} 36. Bb5 {[%clk 0:00:02]}  Nxb3 {[%clk 0:01:47]} 37. e6+ {[%clk 0:00:03]}  Kf8 {[%clk 0:01:48]} 38. Kg6 {[%clk 0:00:03]}  Nd4 {[%clk 0:01:48]} 39. Bd7 {[%clk 0:00:03]}  Nxd7 {[%clk 0:01:46]} 40. exd7 {[%clk 0:00:03]}  Nc6 {[%clk 0:01:46]} 41. Kf5 {[%clk 0:00:03]}  Ke7 {[%clk 0:01:46]} 42. Kg6 {[%clk 0:00:04]}  b5 {[%clk 0:01:43]} 43. axb5 {[%clk 0:00:00]}  Nb8 {[%clk 0:01:44]} 0-1

[Event "December 12 Early 2023"]
[Site "https://www.chess.com"]
[Date "2023.12.12"]
[Round "1"]
[White "Ruge, Edison"]
[Black "NikaVolkov"]
[Result "0-1"]
[Board "170"]
[TimeControl "180+1"]
[WhiteFideId "4401000"]
[WhiteElo "2305"]
[BlackElo "2602"]
[WhiteTeam "COL"]
[WhiteClock "0:00:06"]
[BlackClock "0:02:08"]

1. e4 {[%clk 0:02:53]}  c5 {[%clk 0:02:59]} 2. Nf3 {[%clk 0:02:54]}  e6 {[%clk 0:03:00]} 3. d3 {[%clk 0:02:55]}  d5 {[%clk 0:03:00]} 4. Nbd2 {[%clk 0:02:55]}  Nc6 {[%clk 0:03:01]} 5. g3 {[%clk 0:02:55]}  Nf6 {[%clk 0:03:02]} 6. Bg2 {[%clk 0:02:55]}  Be7 {[%clk 0:03:03]} 7. O-O {[%clk 0:02:54]}  O-O {[%clk 0:03:03]} 8. Re1 {[%clk 0:02:54]}  Qc7 {[%clk 0:03:04]} 9. c3 {[%clk 0:02:53]}  b6 {[%clk 0:03:04]} 10. Nf1 {[%clk 0:02:49]}  Ba6 {[%clk 0:03:02]} 11. h4 {[%clk 0:02:44]}  dxe4 {[%clk 0:03:03]} 12. dxe4 {[%clk 0:02:43]}  Rad8 {[%clk 0:03:03]} 13. Qa4 {[%clk 0:02:32]}  Bd3 {[%clk 0:03:04]} 14. N3h2 {[%clk 0:02:22]}  b5 {[%clk 0:03:00]} 15. Qa6 {[%clk 0:01:46]}  Nb8 {[%clk 0:02:33]} 16. Qa3 {[%clk 0:01:22]}  a5 {[%clk 0:02:32]} 17. b3 {[%clk 0:01:10]}  Nc6 {[%clk 0:02:26]} 18. Bf4 {[%clk 0:01:09]}  e5 {[%clk 0:02:26]} 19. Bg5 {[%clk 0:01:04]}  c4 {[%clk 0:02:25]} 20. Qc1 {[%clk 0:00:58]}  h6 {[%clk 0:02:25]} 21. Bxf6 {[%clk 0:00:57]}  Bxf6 {[%clk 0:02:25]} 22. Ng4 {[%clk 0:00:53]}  Be7 {[%clk 0:02:26]} 23. Nge3 {[%clk 0:00:52]}  Bc5 {[%clk 0:02:23]} 24. Nd5 {[%clk 0:00:51]}  Qa7 {[%clk 0:02:20]} 25. Nfe3 {[%clk 0:00:51]}  Ne7 {[%clk 0:02:21]} 26. Nxe7+ {[%clk 0:00:43]}  Bxe7 {[%clk 0:02:20]} 27. bxc4 {[%clk 0:00:43]}  bxc4 {[%clk 0:02:20]} 28. Nd5 {[%clk 0:00:38]}  Bc5 {[%clk 0:02:21]} 29. Qd2 {[%clk 0:00:39]}  f5 {[%clk 0:02:20]} 30. exf5 {[%clk 0:00:35]}  Rxf5 {[%clk 0:02:21]} 31. Ne3 {[%clk 0:00:31]}  Rf6 {[%clk 0:02:17]} 32. Bd5+ {[%clk 0:00:29]}  Rxd5 {[%clk 0:02:14]} 33. Nxd5 {[%clk 0:00:28]}  Rxf2 {[%clk 0:02:15]} 34. Qd1 {[%clk 0:00:12]}  Re2+ {[%clk 0:02:08]} 35. Kh1 {[%clk 0:00:06]}  Be4# {[%clk 0:02:08]} 0-1